bitfinex/quotes_SOLUSD_20220216
["timestamp","ask_amount","ask_price","bid_price","bid_amount"]
[1645040532992,0.25,102.59,102.53,45.49020852]
[1645040539603,25.47773116,102.6,102.53,45.49020852]
[1645040539826,25.47773116,102.6,102.54,0.25]
[1645040540026,24.22863765,102.65,102.54,0.25]
[1645040540227,14.06,102.65,102.55,2.13857583]
[1645040540431,25.46938048,102.64,102.55,2.13857583]
[1645040541028,25.46938048,102.64,102.56,40.54899033]
[1645040541229,2.75392144,102.68,102.56,138.87899033]
[1645040541431,2.75392144,102.68,102.59,98.33]
[1645040541631,8.93783624,102.71,102.59,112.39]
[1645040541632,2.75392144,102.71,102.59,112.39]
[1645040541830,47.95662144,102.72,102.61,98.33]
[1645040542033,2.75392144,102.72,102.62,14.06]
[1645040542241,2.75392144,102.72,102.63,39.07983862]
[1645040542431,2.75392144,102.74,102.64,127.0014]
[1645040542632,75.93552144,102.75,102.64,131.8704]
[1645040542832,75.93552144,102.75,102.64,134.00897583]
[1645040543034,73.1816,102.75,102.65,2.13857583]
[1645040543434,111.34617648,102.75,102.67,47.99997461]
[1645040543634,2.87209712,102.76,102.67,47.99997461]
[1645040543835,0.11817568,102.76,102.67,162.52855044]
[1645040544638,0.11817568,102.76,102.69,132.94176691]
[1645040544839,0.11817568,102.76,102.7,14.06]
[1645040545037,0.11817568,102.76,102.7,16.19857583]
[1645040545236,0.11817568,102.76,102.7,129.13057583]
[1645040545836,0.11817568,102.76,102.71,41.37094345]
[1645040546036,0.11817568,102.76,102.71,60.29794345]
[1645040546640,0.11817568,102.76,102.72,14.5993]
[1645040546946,0.11817568,102.76,102.73,14.06]
[1645040547140,0.11817568,102.76,102.74,3.03219997]
[1645040547542,0.11817568,102.76,102.75,39.30111888]
[1645040548141,0.11817568,102.76,102.74,3.03219997]
[1645040548940,0.11817568,102.76,102.69,38.3597]
[1645040549141,0.11817568,102.76,102.7,48.60139694]
[1645040551643,0.11817568,102.76,102.71,0.25]
[1645040551843,0.11817568,102.76,102.71,16.44857583]
[1645040552445,0.11817568,102.76,102.72,34.70882958]
[1645040552845,0.11817568,102.76,102.72,49.30702958]
[1645040554147,0.11817568,102.76,102.73,13.82835256]
[1645040554347,0.00817568,102.76,102.74,43.28460535]
[1645040554549,0.32001912,102.83,102.77,122.0]
[1645040554751,0.96005736,102.83,102.74,40.25240538]
[1645040555147,0.96005736,102.83,102.74,51.94240538]
[1645040555947,0.96005736,102.83,102.74,66.53790538]
[1645040556550,0.96005736,102.83,102.74,68.67625794]
[1645040557048,1.25547188,102.86,102.74,68.67625794]
[1645040557251,3.10326438,102.84,102.75,128.0]
[1645040557449,3.10326438,102.84,102.76,37.0554099]
[1645040558853,3.10326438,102.84,102.76,51.6483099]
[1645040559052,3.10326438,102.84,102.76,37.0554099]
[1645040559651,39.18901325,102.84,102.76,37.0554099]
[1645040560256,41.73013729,102.84,102.76,37.0554099]
[1645040562459,5.64438842,102.84,102.76,37.0554099]
[1645040562661,3.10326438,102.84,102.76,37.0554099]
[1645040563465,42.77326482,102.83,102.76,37.0554099]
[1645040564062,45.31438886,102.83,102.76,37.0554099]
[1645040564464,43.87950054,102.83,102.76,37.0554099]
[1645040564865,15.70653572,102.83,102.76,37.0554099]
[1645040565068,1.10623572,102.83,102.76,37.0554099]
[1645040565986,49.92297188,102.86,102.77,128.0]
[1645040566190,0.4559251,102.9,102.79,13.0]
[1645040566391,0.4559251,102.9,102.8,11.69]
[1645040566589,0.4559251,102.9,102.8,44.49378136]
[1645040566788,0.7000755,102.93,102.82,146.19]
[1645040566988,0.7000755,102.93,102.83,31.97999898]
[1645040567189,0.7000755,102.93,102.86,14.577]
[1645040567387,0.7000755,102.93,102.87,11.69]
[1645040567789,0.7000755,102.93,102.87,13.8282526]
[1645040568189,0.7000755,102.93,102.88,20.28999898]
[1645040568391,0.7000755,102.93,102.89,11.69]
[1645040568592,0.00158382,102.91,102.89,16.86045257]
[1645040569491,0.00158382,102.91,102.89,115.19045257]
[1645040569692,0.82626136,102.94,102.89,31.43545257]
[1645040569898,0.4802842,102.93,102.89,16.86045257]
[1645040570097,0.4802842,102.93,102.89,3.03219997]
[1645040570296,45.28271631,102.93,102.89,3.03219997]
[1645040570497,45.28271631,102.93,102.85,56.5190833]
[1645040571095,45.28271631,102.93,102.85,51.6600833]
[1645040572801,45.28271631,102.93,102.86,0.25]
[1645040573495,45.28271631,102.93,102.85,51.6600833]
[1645040573698,45.28271631,102.93,102.86,0.25]
[1645040573898,45.28271631,102.93,102.85,11.69]
[1645040574112,203.88271631,102.93,102.8,4.859]
[1645040574299,3.99267235,102.91,102.77,4.859]
[1645040574505,1.36267235,102.89,102.76,98.33]
[1645040574700,73.32267235,102.9,102.76,98.33]
[1645040574899,71.96,102.9,102.76,128.56055967]
[1645040575102,71.96,102.9,102.77,43.77706202]
[1645040575103,41.93471969,102.89,102.77,43.77706202]
[1645040575697,14.5929,102.88,102.78,2.1382526]
[1645040575899,43.99929358,102.87,102.76,13.8282526]
[1645040576299,43.99929358,102.87,102.76,11.69]
[1645040576900,43.99929358,102.87,102.76,47.57816498]
[1645040577103,104.26929358,102.87,102.76,11.69]
[1645040577311,19.4583,102.86,102.76,11.69]
[1645040577502,14.5953,102.86,102.76,11.69]
[1645040578101,43.95852235,102.85,102.77,47.35416161]
[1645040578303,14.5967,102.84,102.75,82.42]
[1645040578803,43.95852235,102.85,102.75,182.88813437]
[1645040579202,43.95852235,102.85,102.76,44.80396579]
[1645040579401,43.95852235,102.85,102.77,11.69]
[1645040579603,77.79197235,102.89,102.77,112.40813437]
[1645040579804,14.5916,102.88,102.78,2.13813437]
[1645040580005,14.5916,102.88,102.79,11.69]
[1645040580403,14.5916,102.88,102.8,2.13813437]
[1645040580602,50.44840149,102.88,102.81,12.54144309]
[1645040580806,15.95147235,102.9,102.81,12.54144309]
[1645040581003,1.36267235,102.9,102.81,24.23144309]
[1645040581205,1.36267235,102.91,102.82,2.13813437]
[1645040581405,1.36267235,102.91,102.82,11.69]
[1645040581804,44.83952455,102.9,102.83,44.80396579]
[1645040582003,59.42822455,102.9,102.81,11.69]
[1645040582907,59.42822455,102.9,102.82,36.43094025]
[1645040583306,44.83952455,102.9,102.82,38.56907462]
[1645040583506,43.4768522,102.9,102.83,11.69]
[1645040583706,43.4768522,102.9,102.84,20.91446863]
[1645040584507,113.66267235,102.91,102.84,20.91446863]
[1645040584709,1.36267235,102.91,102.85,98.33]
[1645040584908,1.36267235,102.91,102.85,112.15813437]
[1645040585110,0.4802842,102.93,102.86,2.13813437]
[1645040585111,1.84295655,102.93,102.86,2.13813437]
[1645040585308,1.84295655,102.93,102.87,11.69]
[1645040585511,0.4802842,102.93,102.87,48.12094025]
[1645040586508,0.4802842,102.93,102.88,2.13734885]
[1645040586710,0.4802842,102.93,102.89,110.02]
[1645040586910,0.00028198,102.93,102.89,110.02]
[1645040587114,0.82626136,102.94,102.91,98.33]
[1645040587411,0.73775252,102.96,102.93,19.66820505]
[1645040587612,0.73775252,102.96,102.93,31.35820505]
[1645040588712,0.73775252,102.96,102.94,3.03219997]
[1645040588911,0.73496634,102.97,102.94,3.03219997]
[1645040589311,0.73496634,102.97,102.95,11.69]
[1645040589511,0.73496634,102.97,102.96,35.69318773]
[1645040589910,0.73496634,102.97,102.96,3.03219997]
[1645040590111,6.46552567,102.95,102.92,14.5698]
[1645040590311,6.46552567,102.95,102.92,26.2598]
[1645040590911,6.46552567,102.95,102.93,47.20975661]
[1645040591211,6.46552567,102.95,102.94,3.03219997]
[1645040591612,0.73496634,102.97,102.94,3.28219997]
[1645040591812,0.73496634,102.97,102.94,101.61219997]
[1645040592015,0.73496634,102.97,102.94,5.41954882]
[1645040592243,0.73496634,102.97,102.94,3.28219997]
[1645040592420,0.73496634,102.97,102.95,8.1461105]
[1645040592621,0.73496634,102.97,102.91,11.69]
[1645040592821,0.73496634,102.97,102.92,0.25]
[1645040593022,0.73496634,102.97,102.91,11.69]
[1645040593223,2.09763869,102.97,102.91,11.69]
[1645040593425,0.73496634,102.97,102.91,11.69]
[1645040593624,47.81732917,102.97,102.88,4.856]
[1645040593824,2.09763869,102.97,102.89,11.69]
[1645040594023,2.09763869,102.97,102.89,26.2644]
[1645040594224,0.73496634,102.97,102.89,28.40174885]
[1645040594622,2.09763869,102.97,102.89,26.2644]
[1645040594824,37.56844835,102.96,102.9,0.25]
[1645040595225,2.09763869,102.97,102.9,0.25]
[1645040595423,2.09763869,102.97,102.9,14.824]
[1645040596030,1.36267235,102.96,102.9,0.25]
[1645040596232,45.23893408,102.95,102.9,0.25]
[1645040596435,45.23893408,102.95,102.87,72.41204885]
[1645040596633,46.60160643,102.95,102.85,4.857]
[1645040596835,1.36267235,102.93,102.85,4.857]
[1645040597142,1.36267235,102.93,102.82,49.1552]
[1645040597143,1.36267235,102.92,102.82,60.8452]
[1645040597337,38.75273909,102.91,102.82,60.8452]
[1645040597534,53.33883909,102.91,102.83,8.25844673]
[1645040597932,51.97616674,102.91,102.83,8.25844673]
[1645040598335,37.39006674,102.91,102.83,8.25844673]
[1645040598532,37.39006674,102.91,102.84,11.94]
[1645040598732,37.39006674,102.91,102.85,40.12590101]
[1645040598932,1.36267235,102.94,102.85,40.12590101]
[1645040599138,15.94387235,102.94,102.85,54.70610101]
[1645040599339,1.36267235,102.93,102.85,54.70610101]
[1645040599949,37.46576871,102.92,102.85,54.70610101]
[1645040600352,38.82844106,102.92,102.85,54.70610101]
[1645040600550,37.46576871,102.92,102.85,54.70610101]
[1645040600953,38.82844106,102.92,102.85,54.70610101]
[1645040601351,1.36267235,102.92,102.85,155.17344986]
[1645040601551,1.36267235,102.94,102.86,104.33]
[1645040601751,86.1014,102.96,102.88,98.33]
[1645040601752,1.36267235,102.96,102.88,98.33]
[1645040601952,1.36267235,102.96,102.88,11.69]
[1645040602353,36.21824915,102.95,102.88,26.9199661]
[1645040602552,37.5809215,102.95,102.88,26.9199661]
[1645040602754,37.5809215,102.95,102.88,11.69]
[1645040602952,36.21824915,102.95,102.84,11.69]
[1645040603152,1.36267235,102.93,102.84,11.69]
[1645040603555,1.36267235,102.94,102.84,11.69]
[1645040603753,46.63361736,102.93,102.84,47.56734144]
[1645040603953,62.57898971,102.93,102.83,14.583]
[1645040604154,1.36267235,102.91,102.82,49.1552]
[1645040604356,1.36267235,102.9,102.78,16.55]
[1645040604555,1.36267235,102.88,102.74,4.861]
[1645040604758,1.36267235,102.88,102.76,11.69]
[1645040604957,48.07823654,102.87,102.77,42.17796662]
[1645040605355,51.63567477,102.85,102.77,56.76946662]
[1645040605555,52.54939639,102.88,102.77,56.76946662]
[1645040605556,1.36267235,102.88,102.77,56.76946662]
[1645040605760,1.36267235,102.89,102.77,56.76946662]
[1645040605956,1.36267235,102.89,102.77,155.09946662]
[1645040606160,1.36267235,102.89,102.78,6.0]
[1645040606658,35.19918712,102.88,102.79,13.17790049]
[1645040606959,49.78878712,102.88,102.79,27.76680049]
[1645040607357,1.36267235,102.87,102.79,13.17790049]
[1645040607560,47.60621173,102.86,102.79,13.17790049]
[1645040608462,1.36267235,102.88,102.79,13.17790049]
[1645040608661,1.36267235,102.88,102.79,27.76760049]
[1645040609058,1.36267235,102.88,102.79,128.23494934]
[1645040609260,1.36267235,102.89,102.79,139.92494934]
[1645040609458,1.36267235,102.89,102.81,140.50796662]
[1645040609960,49.3866199,102.9,102.81,44.31531547]
[1645040610258,1.36267235,102.9,102.81,44.31531547]
[1645040610862,1.36267235,102.9,102.82,14.5856]
[1645040611065,1.36267235,102.9,102.82,112.9156]
[1645040611263,1.36267235,102.9,102.83,13.17790049]
[1645040611460,1.36267235,102.91,102.83,24.86790049]
[1645040611660,1.36267235,102.93,102.84,2.13734885]
[1645040611860,1.36267235,102.91,102.82,11.69]
[1645040612062,1.36267235,102.89,102.8,44.8302]
[1645040612260,1.36267235,102.88,102.8,44.8302]
[1645040612660,1.36267235,102.88,102.8,38.8302]
[1645040612862,1.36267235,102.88,102.81,39.1324528]
[1645040613064,1.36267235,102.88,102.81,152.0494528]
[1645040613263,1.36267235,102.9,102.82,104.33]
[1645040613462,1.36267235,102.9,102.82,6.0]
[1645040613663,1.36267235,102.91,102.82,6.0]
[1645040613864,48.70560461,102.9,102.83,16.47341431]
[1645040614862,1.36267235,102.9,102.83,31.05681431]
[1645040615063,1.36267235,102.9,102.83,129.38681431]
[1645040615264,1.36267235,102.91,102.83,31.05681431]
[1645040615967,1.36267235,102.91,102.83,141.07681431]
[1645040616369,1.36267235,102.91,102.83,42.74681431]
[1645040616769,44.75826957,102.9,102.83,42.74681431]
[1645040616967,46.12094192,102.9,102.81,26.2761]
[1645040617170,1.36267235,102.89,102.81,14.5861]
[1645040617666,1.36267235,102.89,102.8,24.2417]
[1645040618066,39.67784947,102.88,102.81,41.63854293]
[1645040618267,1.36267235,102.88,102.81,56.22544293]
[1645040618467,1.36267235,102.89,102.81,56.22544293]
[1645040618877,1.36267235,102.88,102.81,56.22544293]
[1645040619075,1.36267235,102.88,102.81,14.5869]
[1645040620075,45.93901664,102.88,102.82,44.74385258]
[1645040620276,44.57634429,102.88,102.82,44.74385258]
[1645040620475,1.36267235,102.88,102.82,44.74385258]
[1645040621278,15.95037235,102.89,102.82,44.74385258]
[1645040621481,1.36267235,102.88,102.82,44.74385258]
[1645040623681,1.36267235,102.87,102.82,44.74385258]
[1645040626698,1.36267235,102.87,102.83,0.25]
[1645040627010,1.36267235,102.88,102.83,0.25]
[1645040629201,1.36267235,102.87,102.83,0.25]
[1645040629900,1.36267235,102.88,102.83,0.25]
[1645040630100,1.36267235,102.87,102.83,0.25]
[1645040630300,1.36267235,102.88,102.83,0.25]
[1645040631117,1.36267235,102.89,102.84,98.33]
[1645040631309,1.36267235,102.89,102.84,110.02]
[1645040631512,1.36267235,102.9,102.84,110.02]
[1645040631705,1.36267235,102.9,102.85,10.61201453]
[1645040632205,1.36267235,102.9,102.85,25.19331453]
[1645040632605,1.36267235,102.89,102.85,25.19331453]
[1645040635210,1.36267235,102.89,102.85,14.5813]
[1645040635412,1.36267235,102.89,102.83,11.69]
[1645040635614,1.36267235,102.88,102.82,11.69]
[1645040635812,35.58907934,102.91,102.81,4.86]
[1645040635813,1.36267235,102.87,102.81,4.86]
[1645040636220,42.41736951,102.86,102.81,4.86]
[1645040636418,1.36267235,102.86,102.81,12.05675847]
[1645040636717,1.36267235,102.86,102.81,7.19675847]
[1645040636917,1.36267235,102.85,102.81,7.19675847]
[1645040637114,1.36267235,102.85,102.79,24.1065]
[1645040637315,1.36267235,102.84,102.79,24.1065]
[1645040637721,1.36267235,102.84,102.76,11.69]
[1645040637915,1.36267235,102.83,102.76,11.69]
[1645040638115,1.36267235,102.82,102.77,44.49114945]
[1645040638317,43.2002534,102.83,102.77,44.49114945]
[1645040638717,1.36267235,102.83,102.77,44.49114945]
[1645040638916,15.95967235,102.83,102.77,44.49114945]
[1645040639519,15.95967235,102.83,102.74,11.69]
[1645040639720,15.95967235,102.83,102.75,0.25]
[1645040639919,1.36267235,102.82,102.73,60.3395]
[1645040640120,1.36267235,102.82,102.74,14.5975]
[1645040640319,15.96037235,102.82,102.74,14.5975]
[1645040640521,54.35989037,102.82,102.75,40.48985547]
[1645040641121,15.96037235,102.82,102.75,40.48985547]
[1645040641525,1.36267235,102.82,102.75,165.10605547]
[1645040641728,1.36267235,102.83,102.75,165.10605547]
[1645040641928,1.36267235,102.85,102.75,182.90633736]
[1645040642124,1.36267235,102.85,102.76,0.25]
[1645040642324,1.36267235,102.85,102.76,110.27]
[1645040642525,1.36267235,102.85,102.77,113.19601164]
[1645040642926,1.36267235,102.85,102.77,124.88601164]
[1645040643324,39.3417825,102.85,102.77,26.55601164]
[1645040643929,39.3417825,102.85,102.76,0.25]
[1645040643930,1.36267235,102.84,102.76,0.25]
[1645040644129,1.36267235,102.84,102.74,48.6916]
[1645040644531,15.95907235,102.83,102.73,14.5978]
[1645040644753,1.36267235,102.82,102.73,14.5978]
[1645040644952,41.73449038,102.82,102.73,57.19265745]
[1645040645554,1.36267235,102.81,102.73,57.19265745]
[1645040645752,38.17457141,102.8,102.73,57.19265745]
[1645040645953,52.77407141,102.8,102.73,57.19265745]
[1645040646754,52.77407141,102.8,102.73,14.5978]
[1645040646954,52.77407141,102.8,102.72,14.6005]
[1645040647158,52.77407141,102.8,102.72,14.8505]
[1645040647354,52.77407141,102.8,102.71,6.0]
[1645040647954,52.77407141,102.8,102.72,34.8143583]
[1645040648355,52.77407141,102.8,102.71,6.0]
[1645040648557,14.6065,102.76,102.69,2.14486279]
[1645040648759,14.6065,102.76,102.68,14.6048]
[1645040649360,38.70769839,102.75,102.67,112.40925036]
[1645040649860,38.70769839,102.75,102.68,0.25]
[1645040650261,38.70769839,102.75,102.67,100.71925036]
[1645040650860,53.31549839,102.75,102.67,100.71925036]
[1645040651160,14.6078,102.75,102.67,118.51953225]
[1645040651563,14.6078,102.75,102.67,120.66439504]
[1645040652364,57.11838684,102.77,102.68,0.25]
[1645040652564,57.11838684,102.77,102.69,18.17511675]
[1645040653565,14.6032,102.79,102.69,20.31997954]
[1645040653964,14.6032,102.79,102.69,133.25377954]
[1645040654164,22.9126,102.8,102.69,172.56055526]
[1645040654562,65.29512783,102.8,102.69,172.56055526]
[1645040654765,22.9126,102.8,102.69,172.56055526]
[1645040654968,22.9126,102.8,102.69,188.40062404]
[1645040655165,14.6008,102.81,102.69,188.40062404]
[1645040655567,14.6008,102.81,102.69,211.25722404]
[1645040655765,53.19213564,102.81,102.69,211.25722404]
[1645040655964,53.19213564,102.81,102.69,226.03082404]
[1645040656366,53.19213564,102.81,102.69,112.92722404]
[1645040656565,53.19213564,102.81,102.69,211.25722404]
[1645040657065,53.19213564,102.81,102.69,112.92722404]
[1645040657474,53.19213564,102.81,102.69,211.25722404]
[1645040658168,53.19213564,102.81,102.69,112.92722404]
[1645040658367,53.19213564,102.81,102.69,97.08715526]
[1645040658568,55.73325968,102.81,102.69,87.27066143]
[1645040659269,53.19213564,102.81,102.69,87.27066143]
[1645040659474,53.19213564,102.81,102.69,46.23894468]
[1645040659669,53.19213564,102.81,102.67,13.83486279]
[1645040659670,65.44112404,102.8,102.67,13.83486279]
[1645040659872,65.44112404,102.8,102.64,29.8287]
[1645040659873,14.6101,102.76,102.64,11.69]
[1645040660079,22.1081,102.76,102.64,11.69]
[1645040660278,14.6101,102.76,102.62,16.558]
[1645040660474,35.20391784,102.75,102.63,39.92452329]
[1645040660673,35.20391784,102.75,102.63,138.25452329]
[1645040660874,14.6102,102.74,102.65,15.43134382]
[1645040661072,47.86615784,102.73,102.65,15.43134382]
[1645040661872,47.86615784,102.73,102.65,30.04074382]
[1645040662072,47.86615784,102.73,102.65,128.37074382]
[1645040662275,14.6102,102.74,102.65,128.37074382]
[1645040662478,37.9874,102.76,102.65,140.06074382]
[1645040662678,14.6063,102.76,102.65,140.06074382]
[1645040662877,22.8782,102.77,102.69,14.6039]
[1645040663275,57.19017925,102.77,102.7,39.92452329]
[1645040663501,22.8782,102.77,102.7,149.94452329]
[1645040663676,47.507,102.8,102.7,149.94452329]
[1645040664282,47.507,102.8,102.7,51.61452329]
[1645040664682,24.6314,102.8,102.7,66.21742329]
[1645040665184,115.77347235,102.82,102.7,66.21742329]
[1645040665381,115.77347235,102.82,102.71,98.33]
[1645040665583,41.9169234,102.81,102.72,27.12134382]
[1645040665980,56.5165234,102.81,102.72,41.72034382]
[1645040666381,1.36267235,102.8,102.72,41.72034382]
[1645040667381,41.9169234,102.81,102.72,41.72034382]
[1645040667581,1.36267235,102.8,102.72,41.72034382]
[1645040667789,41.9169234,102.81,102.72,41.72034382]
[1645040667983,14.5998,102.8,102.72,41.72034382]
[1645040668281,39.44101996,102.79,102.72,41.72034382]
[1645040668983,15.96247235,102.8,102.72,41.72034382]
[1645040669781,14.5998,102.8,102.72,41.72034382]
[1645040669984,42.96531076,102.79,102.72,41.72034382]
[1645040670685,57.56651076,102.79,102.71,14.602]
[1645040670884,58.92918311,102.79,102.7,22.7869]
[1645040671094,1.36267235,102.78,102.7,22.7869]
[1645040671684,37.03767626,102.77,102.71,35.36582314]
[1645040671886,51.64257626,102.77,102.7,22.7869]
[1645040672993,53.00524861,102.77,102.67,44.031]
[1645040673189,14.6112,102.74,102.67,4.867]
[1645040673387,14.6112,102.74,102.62,58.4183]
[1645040673988,14.6112,102.74,102.63,14.6122]
[1645040673989,60.27,102.73,102.63,14.6122]
[1645040674192,14.6143,102.7,102.63,39.91346487]
[1645040674589,1.36267235,102.73,102.63,138.24346487]
[1645040674792,1.36267235,102.74,102.64,17.69]
[1645040674993,1.36267235,102.76,102.65,98.33]
[1645040675194,15.96797235,102.77,102.67,14.604]
[1645040675497,48.21326758,102.76,102.68,0.25]
[1645040675691,48.21326758,102.76,102.67,87.70220224]
[1645040675892,49.57593993,102.76,102.68,0.25]
[1645040676896,64.18163993,102.76,102.68,14.8563]
[1645040677299,64.18163993,102.76,102.69,39.91346487]
[1645040678100,64.18163993,102.76,102.68,14.8563]
[1645040678298,64.18163993,102.76,102.67,60.5734]
[1645040678516,66.72276397,102.76,102.65,11.69]
[1645040678914,64.18163993,102.76,102.66,0.25]
[1645040679125,1.36267235,102.75,102.66,42.89530491]
[1645040679319,52.68366977,102.74,102.66,42.89530491]
[1645040680818,52.68366977,102.74,102.66,57.50420491]
[1645040681015,52.68366977,102.74,102.66,57.25420491]
[1645040682317,52.68366977,102.74,102.67,0.25]
[1645040683319,38.07436977,102.74,102.67,14.8576]
[1645040683518,38.07436977,102.74,102.68,12.7105622]
[1645040683720,38.07436977,102.74,102.67,14.8576]
[1645040684720,38.07436977,102.74,102.67,14.6076]
[1645040684923,52.68326977,102.74,102.65,14.6093]
[1645040685121,55.22439381,102.74,102.64,120.68703341]
[1645040685324,52.68326977,102.74,102.64,108.99703341]
[1645040685722,54.04594212,102.74,102.64,108.99703341]
[1645040686128,52.68326977,102.74,102.64,108.99703341]
[1645040686727,52.68326977,102.74,102.64,120.68703341]
[1645040686925,52.68326977,102.74,102.64,135.29903341]
[1645040687725,52.68326977,102.74,102.64,235.78048934]
[1645040687926,52.68326977,102.74,102.66,14.6085]
[1645040688127,52.68326977,102.74,102.67,17.4289337]
[1645040690628,3.90379639,102.73,102.61,11.69]
[1645040690832,173.2172,102.7,102.59,4.868]
[1645040691034,5.08,102.63,102.56,0.88971216]
[1645040691431,0.25,102.62,102.56,0.88971216]
[1645040691632,38.76778074,102.62,102.56,0.88971216]
[1645040691832,38.76778074,102.62,102.56,18.49041947]
[1645040692032,5.08,102.63,102.56,18.49041947]
[1645040693032,51.63636315,102.63,102.56,18.49041947]
[1645040693433,51.63636315,102.63,102.56,33.11331947]
[1645040693635,5.08,102.63,102.57,0.25]
[1645040694033,5.08,102.63,102.57,98.58]
[1645040694232,5.08,102.63,102.57,120.76583367]
[1645040694432,5.08,102.63,102.59,98.33]
[1645040694635,5.08,102.63,102.6,37.7551598]
[1645040694840,5.08,102.63,102.61,3.03219997]
[1645040695839,50.0,102.61,102.56,15.39401216]
[1645040696039,42.68146209,102.63,102.56,15.39401216]
[1645040696250,0.25,102.6,102.54,0.44873168]
[1645040696438,14.8778,102.6,102.54,0.44873168]
[1645040696852,47.38869714,102.59,102.54,0.44873168]
[1645040697440,62.01709714,102.59,102.54,0.44873168]
[1645040701350,0.25,102.58,102.54,2.59456535]
[1645040701540,0.25,102.58,102.54,0.44873168]
[1645040701740,47.38869714,102.59,102.54,0.44873168]
[1645040702341,62.01749714,102.59,102.54,0.44873168]
[1645040703342,0.25,102.58,102.54,0.44873168]
[1645040703742,14.6316,102.57,102.54,0.44873168]
[1645040704550,34.71834777,102.56,102.54,0.44873168]
[1645040705177,3.03219997,102.55,102.53,0.2380426]
[1645040705776,0.25,102.54,102.53,0.2380426]
[1645040706177,36.94654415,102.54,102.53,0.2380426]
[1645040706978,51.58214415,102.54,102.53,0.2380426]
[1645040707985,3.03219997,102.55,102.53,0.2380426]
[1645040708283,48.7709,102.6,102.53,0.2380426]
[1645040709286,0.25,102.59,102.53,0.2380426]
[1645040709490,14.6313,102.58,102.53,0.2380426]
[1645040709685,45.38565292,102.57,102.53,0.2380426]
[1645040709986,48.7611,102.62,102.53,0.2380426]
[1645040710186,48.7155,102.64,102.53,2.38387627]
[1645040710986,41.4011605,102.63,102.53,44.0016377]
[1645040711387,0.25,102.62,102.53,44.0016377]
[1645040711788,0.25,102.62,102.53,2.38387627]
[1645040711992,14.6264,102.62,102.53,115.34087627]
[1645040712189,14.6264,102.62,102.53,17.01087627]
[1645040712389,14.6264,102.62,102.53,14.8650426]
[1645040712688,35.35105471,102.61,102.53,0.2380426]
[1645040712889,95.62105471,102.61,102.53,0.2380426]
[1645040713291,0.25,102.6,102.53,0.2380426]
[1645040713689,14.6322,102.59,102.53,0.2380426]
[1645040713891,47.37688355,102.58,102.53,0.2380426]
[1645040714596,49.91800759,102.58,102.53,0.2380426]
[1645040714793,64.54960759,102.58,102.53,0.2380426]
[1645040714994,62.00848355,102.58,102.53,0.2380426]
[1645040715593,64.54960759,102.58,102.53,0.2380426]
[1645040715795,14.6373,102.56,102.53,0.4760852]
[1645040715991,3.03219997,102.55,102.51,0.05441476]
[1645040716191,34.56289679,102.54,102.51,0.05441476]
[1645040717591,112.01172083,102.54,102.51,0.00441476]
[1645040717793,0.25,102.53,102.46,0.10882952]
[1645040717993,72.23,102.53,102.46,0.10882952]
[1645040718192,11.96,102.53,102.46,0.10882952]
[1645040718593,14.6482,102.51,102.46,0.10882952]
[1645040719302,35.57925729,102.5,102.46,0.35882952]
[1645040719497,14.6482,102.51,102.46,0.35882952]
[1645040719796,14.6384,102.53,102.46,0.35882952]
[1645040719996,25.00017235,102.58,102.46,0.35882952]
[1645040720296,25.00017235,102.58,102.46,25.19502952]
[1645040720297,0.25,102.57,102.46,25.19502952]
[1645040720496,43.48732313,102.57,102.47,44.42395544]
[1645040720696,43.48732313,102.57,102.47,59.05995544]
[1645040720897,14.6347,102.55,102.47,59.16878496]
[1645040721097,14.6347,102.55,102.47,0.10882952]
[1645040722099,38.81768191,102.54,102.47,0.10882952]
[1645040722298,14.6404,102.52,102.47,0.10882952]
[1645040722500,56.56542818,102.52,102.47,0.10882952]
[1645040726336,0.25,102.51,102.47,0.10882952]
[1645040726537,14.892,102.51,102.47,0.10882952]
[1645040727337,45.71009633,102.5,102.47,0.10882952]
[1645040727545,3.03219997,102.49,102.47,0.10882952]
[1645040728342,42.35287921,102.48,102.47,0.10882952]
[1645040729945,56.99947921,102.48,102.47,0.10882952]
[1645040731040,14.6466,102.48,102.47,0.10882952]
[1645040731243,3.03219997,102.49,102.47,0.10882952]
[1645040731244,17.67609997,102.49,102.47,0.10882952]
[1645040731441,3.03219997,102.49,102.47,0.10882952]
[1645040731646,48.8127,102.52,102.47,0.10882952]
[1645040732042,35.25909297,102.51,102.47,0.10882952]
[1645040732441,14.6427,102.5,102.47,0.10882952]
[1645040732642,14.8927,102.5,102.47,0.10882952]